[Event "*** SCC Grand Prix: Titled Tuesday Blitz"]
[Site "Chess.com"]
[Date "2020.06.09"]
[Round "10"]
[White "Morshynska"]
[Black "chesstrainer2042"]
[Result "0-1"]
[WhiteElo "2210"]
[BlackElo "2429"]
[TimeControl "180+1"]
[EndTime "10:57:20 PDT"]
[Termination "chesstrainer2042 won on time"]

1. e4 {[%clk 0:03:00.9]} 1... e5 {[%clk 0:02:59]} 2. Nf3 {[%clk 0:02:59.9]} 2...
Nc6 {[%clk 0:02:59.3]} 3. Bc4 {[%clk 0:02:59.3]} 3... Nf6 {[%clk 0:02:57.8]} 4.
d3 {[%clk 0:02:56.1]} 4... Be7 {[%clk 0:02:57]} 5. c3 {[%clk 0:02:54.2]} 5...
O-O {[%clk 0:02:56.7]} 6. O-O {[%clk 0:02:51.5]} 6... d5 {[%clk 0:02:53.4]} 7.
exd5 {[%clk 0:02:52.4]} 7... Nxd5 {[%clk 0:02:52.9]} 8. Re1 {[%clk 0:02:44.9]}
8... Bg4 {[%clk 0:02:50.9]} 9. h3 {[%clk 0:02:44.3]} 9... Bh5 {[%clk 0:02:51]}
10. g4 {[%clk 0:02:36.4]} 10... Bg6 {[%clk 0:02:50.6]} 11. Nxe5 {[%clk
0:02:30.9]} 11... Nxe5 {[%clk 0:02:50.7]} 12. Rxe5 {[%clk 0:02:31.2]} 12... Nb6
{[%clk 0:02:51.2]} 13. Re1 {[%clk 0:02:10.9]} 13... Bd6 {[%clk 0:02:38.6]} 14.
Na3 {[%clk 0:01:58.2]} 14... Kh8 {[%clk 0:02:35.7]} 15. Qf3 {[%clk 0:01:54]}
15... f5 {[%clk 0:02:29.5]} 16. g5 {[%clk 0:01:50.7]} 16... f4 {[%clk
0:02:29.3]} 17. h4 {[%clk 0:01:46.9]} 17... c6 {[%clk 0:02:27.4]} 18. Bb3 {[%clk
0:00:36.4]} 18... Qd7 {[%clk 0:01:26.2]} 19. d4 {[%clk 0:00:22.7]} 19... Bf5
{[%clk 0:01:18.6]} 20. Bd1 {[%clk 0:00:13.1]} 20... Rae8 {[%clk 0:01:10.4]} 21.
Rxe8 {[%clk 0:00:10.4]} 21... Rxe8 {[%clk 0:01:09.9]} 22. Bd2 {[%clk 0:00:09.7]}
22... Be4 {[%clk 0:01:05.2]} 23. Qg4 {[%clk 0:00:08.2]} 23... Qf7 {[%clk
0:01:04.9]} 24. Bb3 {[%clk 0:00:06]} 24... Bd5 {[%clk 0:01:02.6]} 25. Bxd5
{[%clk 0:00:05.1]} 25... Nxd5 {[%clk 0:01:01.8]} 26. Re1 {[%clk 0:00:04.7]}
26... Rxe1+ {[%clk 0:00:47.5]} 27. Bxe1 {[%clk 0:00:05.6]} 27... Bxa3 {[%clk
0:00:46.1]} 28. bxa3 {[%clk 0:00:06.5]} 28... Nb6 {[%clk 0:00:45.5]} 29. Qe2
{[%clk 0:00:04.9]} 29... f3 {[%clk 0:00:43.7]} 30. Qe5 {[%clk 0:00:03.8]} 30...
h5 {[%clk 0:00:36.8]} 31. Qb8+ {[%clk 0:00:01.8]} 31... Kh7 {[%clk 0:00:36.4]}
32. Qxa7 {[%clk 0:00:02.7]} 32... Nc4 {[%clk 0:00:35.6]} 33. Qc5 {[%clk
0:00:02]} 33... Qf4 {[%clk 0:00:32.3]} 0-1

[Event "*** SCC Grand Prix: Titled Tuesday Blitz"]
[Site "Chess.com"]
[Date "2020.06.09"]
[Round "10"]
[White "isainz"]
[Black "Charlottemillard17"]
[Result "1-0"]
[WhiteElo "2161"]
[BlackElo "1519"]
[TimeControl "180+1"]
[EndTime "10:57:21 PDT"]
[Termination "isainz won by checkmate"]

1. e4 {[%clk 0:03:00.9]} 1... e5 {[%clk 0:02:58.2]} 2. Nf3 {[%clk 0:02:59.9]}
2... Nc6 {[%clk 0:02:58.1]} 3. d4 {[%clk 0:02:59.6]} 3... exd4 {[%clk
0:02:57.4]} 4. Bc4 {[%clk 0:03:00.2]} 4... Bc5 {[%clk 0:02:56.6]} 5. c3 {[%clk
0:02:58.6]} 5... Nge7 {[%clk 0:02:46.1]} 6. cxd4 {[%clk 0:02:53.9]} 6... Bb4+
{[%clk 0:02:45.6]} 7. Nc3 {[%clk 0:02:51.4]} 7... O-O {[%clk 0:02:43.7]} 8. O-O
{[%clk 0:02:46.3]} 8... Na5 {[%clk 0:02:36.5]} 9. Bd3 {[%clk 0:02:40.9]} 9... d5
{[%clk 0:02:32]} 10. exd5 {[%clk 0:02:34.5]} 10... Nxd5 {[%clk 0:02:32.9]} 11.
Qc2 {[%clk 0:02:31.1]} 11... h6 {[%clk 0:02:27.7]} 12. a3 {[%clk 0:02:26.5]}
12... Bxc3 {[%clk 0:02:05.1]} 13. bxc3 {[%clk 0:02:26.7]} 13... Bg4 {[%clk
0:02:05.4]} 14. Ne5 {[%clk 0:02:22.2]} 14... Qh4 {[%clk 0:01:52.9]} 15. Re1
{[%clk 0:02:16.8]} 15... Nf4 {[%clk 0:01:47.2]} 16. Bxf4 {[%clk 0:02:11.5]}
16... Be6 {[%clk 0:01:37.7]} 17. Bg3 {[%clk 0:02:05.5]} 17... Qf6 {[%clk
0:01:34.3]} 18. c4 {[%clk 0:01:56.6]} 18... Rfd8 {[%clk 0:01:30]} 19. d5 {[%clk
0:01:54.4]} 19... Bd7 {[%clk 0:01:17.7]} 20. Nxd7 {[%clk 0:01:17.5]} 20... Rxd7
{[%clk 0:01:14.2]} 21. Be5 {[%clk 0:01:17]} 21... Qd8 {[%clk 0:01:08.5]} 22. Qc3
{[%clk 0:01:15.5]} 22... f6 {[%clk 0:00:53.2]} 23. Bf4 {[%clk 0:00:55.5]} 23...
Nxc4 {[%clk 0:00:50.2]} 24. Bxc4 {[%clk 0:00:53.5]} 24... a6 {[%clk 0:00:49.6]}
25. d6+ {[%clk 0:00:51.7]} 25... Kh8 {[%clk 0:00:45.1]} 26. dxc7 {[%clk
0:00:38.8]} 26... Rxc7 {[%clk 0:00:43.5]} 27. Bxc7 {[%clk 0:00:38]} 27... Qxc7
{[%clk 0:00:41.7]} 28. Qb3 {[%clk 0:00:32.4]} 28... b5 {[%clk 0:00:38]} 29. Bd5
{[%clk 0:00:27.9]} 29... Rd8 {[%clk 0:00:34.6]} 30. Rad1 {[%clk 0:00:27.2]}
30... Rd6 {[%clk 0:00:30.5]} 31. Qf3 {[%clk 0:00:25]} 31... Qd8 {[%clk
0:00:22.6]} 32. Be4 {[%clk 0:00:20.1]} 32... Rd7 {[%clk 0:00:18.8]} 33. Rxd7
{[%clk 0:00:19.8]} 33... Qxd7 {[%clk 0:00:18.8]} 34. Qf5 {[%clk 0:00:19.5]}
34... Qxf5 {[%clk 0:00:18.5]} 35. Bxf5 {[%clk 0:00:19.8]} 35... Kg8 {[%clk
0:00:18.6]} 36. Bg6 {[%clk 0:00:18.9]} 36... Kf8 {[%clk 0:00:18.3]} 37. Re8#
{[%clk 0:00:17.9]} 1-0

[Event "*** SCC Grand Prix: Titled Tuesday Blitz"]
[Site "Chess.com"]
[Date "2020.06.09"]
[Round "10"]
[White "parnali1611"]
[Black "MuhittinBuker"]
[Result "0-1"]
[WhiteElo "2039"]
[BlackElo "1923"]
[TimeControl "180+1"]
[EndTime "10:57:22 PDT"]
[Termination "MuhittinBuker won by checkmate"]

1. d4 {[%clk 0:02:42]} 1... Nf6 {[%clk 0:02:54.4]} 2. c4 {[%clk 0:02:40.3]} 2...
e6 {[%clk 0:02:54.4]} 3. Nc3 {[%clk 0:02:40.9]} 3... Bb4 {[%clk 0:02:52.8]} 4.
Nf3 {[%clk 0:02:37.8]} 4... b6 {[%clk 0:02:48.9]} 5. Qc2 {[%clk 0:02:37.5]} 5...
Bb7 {[%clk 0:02:44.4]} 6. Bg5 {[%clk 0:02:37.3]} 6... O-O {[%clk 0:02:40.9]} 7.
a3 {[%clk 0:02:32]} 7... Bxc3+ {[%clk 0:02:40.1]} 8. Qxc3 {[%clk 0:02:31.7]}
8... d5 {[%clk 0:02:36.9]} 9. Bxf6 {[%clk 0:02:29.4]} 9... Qxf6 {[%clk
0:02:36.2]} 10. cxd5 {[%clk 0:02:29.2]} 10... Bxd5 {[%clk 0:02:34.1]} 11. Qxc7
{[%clk 0:02:28.5]} 11... Nc6 {[%clk 0:02:32.5]} 12. e3 {[%clk 0:02:26.5]} 12...
Rac8 {[%clk 0:02:30.2]} 13. Qg3 {[%clk 0:02:25.2]} 13... Qf5 {[%clk 0:02:20.1]}
14. Ba6 {[%clk 0:02:22.9]} 14... Rcd8 {[%clk 0:02:09.9]} 15. Nd2 {[%clk
0:02:14]} 15... Qc2 {[%clk 0:02:06.4]} 16. e4 {[%clk 0:02:01.6]} 16... Bxe4
{[%clk 0:01:47.8]} 17. Qe3 {[%clk 0:01:20.3]} 17... Bxg2 {[%clk 0:01:32.9]} 18.
Rg1 {[%clk 0:01:19]} 18... Bd5 {[%clk 0:01:20.7]} 19. Bd3 {[%clk 0:01:12.4]}
19... Qxb2 {[%clk 0:01:09.9]} 20. Rb1 {[%clk 0:01:04.9]} 20... Qxd4 {[%clk
0:01:06]} 21. Qh3 {[%clk 0:00:47.9]} 21... g6 {[%clk 0:01:04.2]} 22. Rg4 {[%clk
0:00:44.3]} 22... Qe5+ {[%clk 0:00:53.7]} 23. Kf1 {[%clk 0:00:42.5]} 23... Qf6
{[%clk 0:00:35.9]} 24. Be4 {[%clk 0:00:27.5]} 24... Ne5 {[%clk 0:00:31.3]} 25.
Rh4 {[%clk 0:00:23.6]} 25... Qg7 {[%clk 0:00:21.2]} 26. Re1 {[%clk 0:00:21.1]}
26... Bxe4 {[%clk 0:00:19.4]} 27. Nxe4 {[%clk 0:00:19.6]} 27... Nd3 {[%clk
0:00:16.8]} 28. Rxh7 {[%clk 0:00:18.5]} 28... Qxh7 {[%clk 0:00:15.8]} 29. Nf6+
{[%clk 0:00:18.2]} 29... Kg7 {[%clk 0:00:15.7]} 30. Qxh7+ {[%clk 0:00:18.7]}
30... Kxf6 {[%clk 0:00:15.8]} 31. Re3 {[%clk 0:00:18.3]} 31... Nf4 {[%clk
0:00:14.5]} 32. Rf3 {[%clk 0:00:18.1]} 32... e5 {[%clk 0:00:13.9]} 33. Ke1
{[%clk 0:00:16.2]} 33... Rd6 {[%clk 0:00:12.6]} 34. Qh4+ {[%clk 0:00:15.3]}
34... Kg7 {[%clk 0:00:12.6]} 35. Rc3 {[%clk 0:00:15]} 35... Rfd8 {[%clk
0:00:12.2]} 36. Qg5 {[%clk 0:00:13]} 36... Rd1# {[%clk 0:00:12.1]} 0-1

[Event "*** SCC Grand Prix: Titled Tuesday Blitz"]
[Site "Chess.com"]
[Date "2020.06.09"]
[Round "10"]
[White "mamonika"]
[Black "Nara_Kh"]
[Result "0-1"]
[WhiteElo "1932"]
[BlackElo "2248"]
[TimeControl "180+1"]
[EndTime "10:57:22 PDT"]
[Termination "Nara_Kh won by checkmate"]

1. e4 {[%clk 0:02:57.4]} 1... d6 {[%clk 0:02:45.8]} 2. d4 {[%clk 0:02:56.9]}
2... Nf6 {[%clk 0:02:45.2]} 3. Nc3 {[%clk 0:02:50.5]} 3... g6 {[%clk 0:02:45]}
4. Be3 {[%clk 0:02:46.6]} 4... c6 {[%clk 0:02:44.2]} 5. Qd2 {[%clk 0:02:47]}
5... b5 {[%clk 0:02:43.7]} 6. f3 {[%clk 0:02:35.5]} 6... Nbd7 {[%clk 0:02:41.3]}
7. Nh3 {[%clk 0:02:28]} 7... e5 {[%clk 0:02:32.1]} 8. Nf2 {[%clk 0:02:19.5]}
8... b4 {[%clk 0:02:22]} 9. Na4 {[%clk 0:02:13.6]} 9... exd4 {[%clk 0:02:19.4]}
10. Bxd4 {[%clk 0:02:13.5]} 10... c5 {[%clk 0:02:19.5]} 11. Be3 {[%clk
0:02:10.8]} 11... Be7 {[%clk 0:02:13.9]} 12. Bc4 {[%clk 0:02:08.9]} 12... O-O
{[%clk 0:02:11.2]} 13. O-O {[%clk 0:02:07.2]} 13... a5 {[%clk 0:02:04.3]} 14. b3
{[%clk 0:02:05.7]} 14... Bb7 {[%clk 0:02:04]} 15. Rad1 {[%clk 0:02:05]} 15...
Qc7 {[%clk 0:02:02.9]} 16. Bf4 {[%clk 0:01:56.2]} 16... Ne5 {[%clk 0:01:59.9]}
17. Bxe5 {[%clk 0:01:49.8]} 17... dxe5 {[%clk 0:01:59.4]} 18. Nd3 {[%clk
0:01:37.9]} 18... Rac8 {[%clk 0:01:46.5]} 19. c3 {[%clk 0:01:29.1]} 19... Nh5
{[%clk 0:01:39.5]} 20. Qe3 {[%clk 0:01:13.9]} 20... Nf4 {[%clk 0:01:26]} 21.
Nxf4 {[%clk 0:01:13]} 21... exf4 {[%clk 0:01:24.2]} 22. Qe2 {[%clk 0:00:58.3]}
22... Bf6 {[%clk 0:01:22.9]} 23. cxb4 {[%clk 0:00:54.6]} 23... axb4 {[%clk
0:01:20.8]} 24. Rd3 {[%clk 0:00:41.1]} 24... Bd4+ {[%clk 0:01:19.7]} 25. Kh1
{[%clk 0:00:40.6]} 25... Rfd8 {[%clk 0:01:19.4]} 26. Rfd1 {[%clk 0:00:39.9]}
26... Qe5 {[%clk 0:01:16.9]} 27. Nb6 {[%clk 0:00:35.4]} 27... Rc6 {[%clk
0:01:13.1]} 28. Nd5 {[%clk 0:00:31.3]} 28... g5 {[%clk 0:01:13]} 29. Qe1 {[%clk
0:00:13.9]} 29... Rh6 {[%clk 0:01:05.7]} 30. h3 {[%clk 0:00:11.6]} 30... Bxd5
{[%clk 0:00:56.5]} 31. Bxd5 {[%clk 0:00:11.4]} 31... Rxd5 {[%clk 0:00:56.6]} 32.
exd5 {[%clk 0:00:09.3]} 32... Qf5 {[%clk 0:00:56.8]} 33. Qe8+ {[%clk 0:00:06.6]}
33... Kg7 {[%clk 0:00:56.2]} 34. Rxd4 {[%clk 0:00:06.2]} 34... cxd4 {[%clk
0:00:54.6]} 35. d6 {[%clk 0:00:03.9]} 35... Rxh3+ {[%clk 0:00:50.8]} 36. Kg1
{[%clk 0:00:03.2]} 36... Rh6 {[%clk 0:00:33.3]} 37. d7 {[%clk 0:00:03.4]} 37...
Qc5 {[%clk 0:00:33.5]} 38. d8=Q {[%clk 0:00:03.1]} 38... d3+ {[%clk 0:00:33.8]}
39. Kf1 {[%clk 0:00:03.4]} 39... Rh1# {[%clk 0:00:33.8]} 0-1

[Event "*** SCC Grand Prix: Titled Tuesday Blitz"]
[Site "Chess.com"]
[Date "2020.06.09"]
[Round "10"]
[White "imdvb6307"]
[Black "Shivagami"]
[Result "1-0"]
[WhiteElo "2402"]
[BlackElo "2266"]
[TimeControl "180+1"]
[EndTime "10:57:25 PDT"]
[Termination "imdvb6307 won on time"]

1. c4 {[%clk 0:03:00]} 1... e5 {[%clk 0:02:59.1]} 2. Nc3 {[%clk 0:02:59.4]} 2...
Bb4 {[%clk 0:02:58.5]} 3. Qc2 {[%clk 0:02:51.8]} 3... Nf6 {[%clk 0:02:50.4]} 4.
Nf3 {[%clk 0:02:48.7]} 4... Bxc3 {[%clk 0:02:44.7]} 5. Qxc3 {[%clk 0:02:19]}
5... e4 {[%clk 0:02:44.9]} 6. Nd4 {[%clk 0:02:19.2]} 6... d5 {[%clk 0:02:35.6]}
7. c5 {[%clk 0:02:14.6]} 7... c6 {[%clk 0:02:30.6]} 8. b4 {[%clk 0:02:08.3]}
8... O-O {[%clk 0:02:30.1]} 9. Bb2 {[%clk 0:02:07.9]} 9... Nbd7 {[%clk
0:02:21.7]} 10. f4 {[%clk 0:01:58.8]} 10... exf3 {[%clk 0:02:14.5]} 11. gxf3
{[%clk 0:01:58.2]} 11... Re8 {[%clk 0:02:14.2]} 12. Rg1 {[%clk 0:01:30.1]} 12...
Ne5 {[%clk 0:02:07.7]} 13. d3 {[%clk 0:01:24.1]} 13... a5 {[%clk 0:01:47.7]} 14.
b5 {[%clk 0:01:13.3]} 14... cxb5 {[%clk 0:01:35.9]} 15. O-O-O {[%clk 0:01:11.9]}
15... b4 {[%clk 0:01:33.9]} 16. Qd2 {[%clk 0:01:08.3]} 16... Qc7 {[%clk
0:01:25.1]} 17. Kb1 {[%clk 0:00:53]} 17... Qxc5 {[%clk 0:01:17.8]} 18. h4 {[%clk
0:00:37.9]} 18... Bd7 {[%clk 0:00:34.9]} 19. Qg5 {[%clk 0:00:36.2]} 19... Ng6
{[%clk 0:00:28.1]} 20. Rc1 {[%clk 0:00:28.1]} 20... Qf8 {[%clk 0:00:20.2]} 21.
Nf5 {[%clk 0:00:27]} 21... Bxf5 {[%clk 0:00:18.1]} 22. Qxf5 {[%clk 0:00:24.5]}
22... h5 {[%clk 0:00:08.7]} 23. Bxf6 {[%clk 0:00:22.7]} 23... gxf6 {[%clk
0:00:09]} 24. Qxh5 {[%clk 0:00:22.1]} 24... Re5 {[%clk 0:00:07.5]} 25. Qg4
{[%clk 0:00:22]} 25... Kh7 {[%clk 0:00:04.8]} 26. f4 {[%clk 0:00:20.7]} 26...
Re7 {[%clk 0:00:02.3]} 27. f5 {[%clk 0:00:20]} 27... Ne5 {[%clk 0:00:01.7]} 28.
Qg2 {[%clk 0:00:16.8]} 28... Qh6 {[%clk 0:00:02.2]} 29. Qxd5 {[%clk 0:00:16]}
1-0

[Event "*** SCC Grand Prix: Titled Tuesday Blitz"]
[Site "Chess.com"]
[Date "2020.06.09"]
[Round "10"]
[White "GoValya"]
[Black "Kilpkonn"]
[Result "1-0"]
[WhiteElo "2165"]
[BlackElo "1985"]
[TimeControl "180+1"]
[EndTime "10:57:28 PDT"]
[Termination "GoValya won on time"]

1. d4 {[%clk 0:03:00.9]} 1... Nf6 {[%clk 0:02:58.5]} 2. c4 {[%clk 0:03:00.4]}
2... e5 {[%clk 0:02:58.2]} 3. d5 {[%clk 0:02:58.8]} 3... d6 {[%clk 0:02:53.6]}
4. Nc3 {[%clk 0:02:57.7]} 4... Be7 {[%clk 0:02:52.5]} 5. e4 {[%clk 0:02:56.8]}
5... c5 {[%clk 0:02:52.5]} 6. Be2 {[%clk 0:02:48.5]} 6... a6 {[%clk 0:02:51]} 7.
Nf3 {[%clk 0:02:44.1]} 7... O-O {[%clk 0:02:50.7]} 8. O-O {[%clk 0:02:43]} 8...
Bd7 {[%clk 0:02:48.8]} 9. a4 {[%clk 0:02:40.3]} 9... Bg4 {[%clk 0:02:42]} 10. h3
{[%clk 0:02:24.9]} 10... Bh5 {[%clk 0:02:39.7]} 11. Ng5 {[%clk 0:02:23.9]} 11...
Bg6 {[%clk 0:02:37.7]} 12. f4 {[%clk 0:02:18.4]} 12... exf4 {[%clk 0:02:24.4]}
13. Bd3 {[%clk 0:01:59.2]} 13... h6 {[%clk 0:02:20.4]} 14. Nf3 {[%clk
0:01:54.9]} 14... Nh5 {[%clk 0:02:19.9]} 15. e5 {[%clk 0:01:47.8]} 15... Ng3
{[%clk 0:01:59.5]} 16. Re1 {[%clk 0:01:41.6]} 16... dxe5 {[%clk 0:01:58.1]} 17.
Nxe5 {[%clk 0:01:38.7]} 17... Bxd3 {[%clk 0:01:52.3]} 18. Qxd3 {[%clk
0:01:25.7]} 18... Bg5 {[%clk 0:01:49]} 19. Ne4 {[%clk 0:01:14.6]} 19... Nd7
{[%clk 0:01:43.4]} 20. Nxd7 {[%clk 0:01:08.3]} 20... Qxd7 {[%clk 0:01:41.4]} 21.
Nxc5 {[%clk 0:01:08.2]} 21... Qc7 {[%clk 0:01:25]} 22. Ne4 {[%clk 0:01:05.5]}
22... Rfe8 {[%clk 0:01:20]} 23. Bd2 {[%clk 0:01:01.5]} 23... Qb6+ {[%clk
0:01:05.7]} 24. Kh2 {[%clk 0:00:50.1]} 24... Qxb2 {[%clk 0:01:03.5]} 25. Bc3
{[%clk 0:00:49.1]} 25... Qb3 {[%clk 0:00:42]} 26. Reb1 {[%clk 0:00:45]} 26...
Qxb1 {[%clk 0:00:17.9]} 27. Rxb1 {[%clk 0:00:42.7]} 27... Rxe4 {[%clk
0:00:16.2]} 28. Rxb7 {[%clk 0:00:37]} 28... Rae8 {[%clk 0:00:15.1]} 29. d6
{[%clk 0:00:36.5]} 29... Re2 {[%clk 0:00:12]} 30. d7 {[%clk 0:00:30.4]} 30...
Rd8 {[%clk 0:00:01.5]} 31. Ba5 {[%clk 0:00:28.8]} 31... Rxg2+ {[%clk 0:00:01.6]}
32. Kxg2 {[%clk 0:00:28.2]} 32... f3+ {[%clk 0:00:02]} 33. Qxf3 {[%clk
0:00:27.1]} 33... Bf4 {[%clk 0:00:02.1]} 34. Qxf4 {[%clk 0:00:26.7]} 34... Ne2
{[%clk 0:00:01.7]} 35. Qc7 {[%clk 0:00:25.7]} 35... Rf8 {[%clk 0:00:01.3]} 36.
d8=Q {[%clk 0:00:25.5]} 36... Nf4+ {[%clk 0:00:01.4]} 37. Kf3 {[%clk 0:00:24.8]}
37... Rxd8 {[%clk 0:00:01.5]} 38. Qxd8+ {[%clk 0:00:24.7]} 38... Kh7 {[%clk
0:00:01.8]} 39. Kxf4 {[%clk 0:00:24.8]} 1-0

[Event "*** SCC Grand Prix: Titled Tuesday Blitz"]
[Site "Chess.com"]
[Date "2020.06.09"]
[Round "10"]
[White "Batsai"]
[Black "tamarozi99"]
[Result "1-0"]
[WhiteElo "2305"]
[BlackElo "2060"]
[TimeControl "180+1"]
[EndTime "10:57:29 PDT"]
[Termination "Batsai won by checkmate"]

1. d4 {[%clk 0:02:58.8]} 1... Nf6 {[%clk 0:02:59.3]} 2. c4 {[%clk 0:02:59]} 2...
g6 {[%clk 0:02:59.5]} 3. Nc3 {[%clk 0:02:59.4]} 3... Bg7 {[%clk 0:02:59.7]} 4.
e4 {[%clk 0:02:59.7]} 4... d6 {[%clk 0:03:00]} 5. Nf3 {[%clk 0:02:57.6]} 5...
O-O {[%clk 0:02:59.7]} 6. Be2 {[%clk 0:02:58]} 6... e5 {[%clk 0:02:58.8]} 7. d5
{[%clk 0:02:58.5]} 7... a5 {[%clk 0:02:57.4]} 8. Bg5 {[%clk 0:02:58.2]} 8... h6
{[%clk 0:02:52.8]} 9. Be3 {[%clk 0:02:48.4]} 9... Na6 {[%clk 0:02:52.5]} 10. Nd2
{[%clk 0:02:46.4]} 10... Nc5 {[%clk 0:02:47.3]} 11. b3 {[%clk 0:02:24.4]} 11...
Nfxe4 {[%clk 0:02:37.9]} 12. Ndxe4 {[%clk 0:02:22]} 12... Nxe4 {[%clk 0:02:38]}
13. Nxe4 {[%clk 0:02:22.8]} 13... f5 {[%clk 0:02:38.1]} 14. Nc3 {[%clk
0:02:17.5]} 14... f4 {[%clk 0:02:31.5]} 15. Bd2 {[%clk 0:02:04]} 15... Bf5
{[%clk 0:02:29]} 16. f3 {[%clk 0:01:57]} 16... Qh4+ {[%clk 0:02:27]} 17. Kf1
{[%clk 0:01:56.4]} 17... e4 {[%clk 0:02:20.4]} 18. fxe4 {[%clk 0:01:42]} 18...
f3 {[%clk 0:01:30.7]} 19. Bxf3 {[%clk 0:01:32.9]} 19... Bxe4 {[%clk 0:01:29]}
20. Nxe4 {[%clk 0:01:09.8]} 20... Qxe4 {[%clk 0:01:27]} 21. Rc1 {[%clk
0:01:06.4]} 21... Rae8 {[%clk 0:01:16.6]} 22. Be1 {[%clk 0:00:40.4]} 22... Qf4
{[%clk 0:00:47.9]} 23. Bf2 {[%clk 0:00:33.7]} 23... g5 {[%clk 0:00:47.4]} 24. h3
{[%clk 0:00:25.8]} 24... h5 {[%clk 0:00:44.8]} 25. Rc2 {[%clk 0:00:21.3]} 25...
g4 {[%clk 0:00:20.2]} 26. hxg4 {[%clk 0:00:20.9]} 26... hxg4 {[%clk 0:00:20.4]}
27. Bxg4 {[%clk 0:00:19.5]} 27... Bd4 {[%clk 0:00:17]} 28. Bf3 {[%clk
0:00:17.1]} 28... Bxf2 {[%clk 0:00:08.7]} 29. Rxf2 {[%clk 0:00:16.6]} 29... Re3
{[%clk 0:00:08.7]} 30. Qc2 {[%clk 0:00:14.5]} 30... Rf7 {[%clk 0:00:06.7]} 31.
Qg6+ {[%clk 0:00:13.4]} 31... Kf8 {[%clk 0:00:06.6]} 32. Rh8+ {[%clk 0:00:12.3]}
32... Ke7 {[%clk 0:00:06.2]} 33. Qg8 {[%clk 0:00:10.7]} 33... Rxf3 {[%clk
0:00:03.7]} 34. Qd8# {[%clk 0:00:10.3]} 1-0

[Event "*** SCC Grand Prix: Titled Tuesday Blitz"]
[Site "Chess.com"]
[Date "2020.06.09"]
[Round "10"]
[White "Lion-Al-Messi"]
[Black "Natalya_Buksa"]
[Result "0-1"]
[WhiteElo "2415"]
[BlackElo "2576"]
[TimeControl "180+1"]
[EndTime "10:57:32 PDT"]
[Termination "Natalya_Buksa won by checkmate"]

1. e4 {[%clk 0:02:59.8]} 1... c5 {[%clk 0:02:58.8]} 2. Nf3 {[%clk 0:02:59.6]}
2... Nc6 {[%clk 0:02:58.5]} 3. d4 {[%clk 0:02:59.7]} 3... cxd4 {[%clk
0:02:58.7]} 4. Nxd4 {[%clk 0:03:00.6]} 4... Nf6 {[%clk 0:02:59.4]} 5. Nc3 {[%clk
0:03:00.4]} 5... e5 {[%clk 0:02:59.8]} 6. Nb3 {[%clk 0:02:58.2]} 6... d6 {[%clk
0:03:00.3]} 7. Bc4 {[%clk 0:02:57.5]} 7... Be7 {[%clk 0:02:59.5]} 8. Be3 {[%clk
0:02:56]} 8... O-O {[%clk 0:02:59.7]} 9. f3 {[%clk 0:02:55.9]} 9... Be6 {[%clk
0:03:00]} 10. Qe2 {[%clk 0:02:55.4]} 10... Na5 {[%clk 0:02:58.5]} 11. Bxe6
{[%clk 0:02:54.3]} 11... fxe6 {[%clk 0:02:57.3]} 12. O-O-O {[%clk 0:02:54.3]}
12... Nxb3+ {[%clk 0:02:51.6]} 13. axb3 {[%clk 0:02:55.2]} 13... Qa5 {[%clk
0:02:46.1]} 14. Kb1 {[%clk 0:02:53.7]} 14... d5 {[%clk 0:02:40.9]} 15. exd5
{[%clk 0:02:52.5]} 15... exd5 {[%clk 0:02:41.8]} 16. Bg5 {[%clk 0:02:52]} 16...
d4 {[%clk 0:02:29.2]} 17. Ne4 {[%clk 0:02:51.1]} 17... Rac8 {[%clk 0:02:07.8]}
18. Bd2 {[%clk 0:02:50.9]} 18... Bb4 {[%clk 0:02:06.1]} 19. Bxb4 {[%clk
0:02:50.3]} 19... Qxb4 {[%clk 0:02:07]} 20. Rhe1 {[%clk 0:02:49.6]} 20... a5
{[%clk 0:02:03.9]} 21. Nxf6+ {[%clk 0:02:49.1]} 21... gxf6 {[%clk 0:02:04.2]}
22. Qe4 {[%clk 0:02:41.4]} 22... a4 {[%clk 0:02:02.6]} 23. bxa4 {[%clk
0:02:41.3]} 23... Qxa4 {[%clk 0:02:02.4]} 24. Qd5+ {[%clk 0:02:41]} 24... Kh8
{[%clk 0:02:01.9]} 25. Re2 {[%clk 0:02:13.6]} 25... Ra8 {[%clk 0:01:59.9]} 26.
Kc1 {[%clk 0:02:11]} 26... Qb4 {[%clk 0:01:01.1]} 27. Kb1 {[%clk 0:01:58.6]}
27... Ra5 {[%clk 0:01:00.4]} 28. Qb3 {[%clk 0:01:57.5]} 28... Qc5 {[%clk
0:01:00.9]} 29. Kc1 {[%clk 0:01:48.1]} 29... Rfa8 {[%clk 0:01:00.9]} 30. Kd2
{[%clk 0:01:38.3]} 30... Rb5 {[%clk 0:01:00.7]} 31. Qf7 {[%clk 0:01:37]} 31...
Qb6 {[%clk 0:00:52.5]} 32. Re4 {[%clk 0:01:32.3]} 32... Rg8 {[%clk 0:00:48.6]}
33. Rh4 {[%clk 0:00:35]} 33... Rxg2+ {[%clk 0:00:47.9]} 34. Kd3 {[%clk
0:00:34.5]} 34... Rg7 {[%clk 0:00:17.3]} 35. Qf8+ {[%clk 0:00:34.7]} 35... Rg8
{[%clk 0:00:17.7]} 36. Qh6 {[%clk 0:00:35.3]} 36... Rg7 {[%clk 0:00:15.8]} 37.
Rg1 {[%clk 0:00:34.4]} 37... Rb3+ {[%clk 0:00:15.3]} 38. cxb3 {[%clk 0:00:18.2]}
38... Qxb3+ {[%clk 0:00:16.2]} 39. Ke4 {[%clk 0:00:15.6]} 39... Qc2+ {[%clk
0:00:16.3]} 40. Kd5 {[%clk 0:00:11.3]} 40... Qc6# {[%clk 0:00:16.3]} 0-1